bitfinex-derivatives/quotes_ETHF0:USTF0_20241004
["timestamp","ask_amount","ask_price","bid_price","bid_amount"]
[1728016833607,0.42045,2378.5,2378.4,0.3857]
[1728016833811,0.42045,2378.5,2378.2,0.42049]
[1728016834018,0.42045,2378.5,2378.2,0.80619]
[1728016834317,3.70045,2378.5,2378.2,0.80619]
[1728016835913,3.70045,2378.5,2378.2,0.3857]
[1728016836519,3.70045,2378.5,2378.2,0.8062]
[1728016836719,0.42047,2378.4,2378.2,0.3857]
[1728016840216,0.42048,2378.3,2378.1,3.2078]
[1728016840425,0.4139,2378.2,2378.1,3.2078]
[1728016840616,0.8091,2378.2,2378.1,3.2078]
[1728016844027,0.8091,2378.2,2378.1,3.62832]
[1728016844325,0.8091,2378.2,2378.1,3.2078]
[1728016845126,0.8091,2378.2,2378.0,1.22663]
[1728016849332,0.8091,2378.2,2378.1,0.42052]
[1728016850826,1.93048,2378.4,2378.0,0.8061]
[1728016851029,1.93048,2378.4,2378.1,0.42051]
[1728016852831,1.93048,2378.4,2378.2,0.4205]
[1728016855836,1.51,2378.4,2378.2,0.4205]
[1728016856138,1.51,2378.4,2378.0,0.8061]
[1728016856532,1.51,2378.4,2378.2,0.42049]
[1728016857434,1.51,2378.4,2378.0,0.8061]
[1728016857633,1.93047,2378.4,2378.1,0.42051]
[1728016859040,0.42049,2378.3,2378.1,0.42051]
[1728016859340,1.51,2378.4,2378.0,1.22663]
[1728016859535,1.51,2378.4,2377.9,3.2078]
[1728016859536,1.93053,2378.1,2377.9,3.2078]
[1728016859740,0.3949,2378.0,2377.9,3.62836]
[1728016859940,0.3949,2378.0,2377.9,3.2078]
[1728016860834,0.81544,2378.0,2377.9,3.2078]
[1728016861240,0.3949,2378.0,2377.9,3.2078]
[1728016861749,0.81544,2378.0,2377.9,3.2078]
[1728016861937,0.3949,2378.0,2377.9,3.2078]
[1728016862136,0.3949,2378.0,2377.9,3.62836]
[1728016862336,2.3218,2378.2,2378.0,0.42053]
[1728016862633,2.3218,2378.2,2378.0,0.81053]
[1728016864638,0.8118,2378.2,2378.1,0.42052]
[1728016864839,2.3218,2378.2,2378.1,0.42052]
[1728016865240,0.8118,2378.2,2378.1,0.42052]
[1728016865435,0.4243,2378.3,2378.2,0.4205]
[1728016867142,2.319,2378.5,2378.2,0.4205]
[1728016867348,3.14356,2378.5,2378.2,0.4205]
[1728016872852,3.14356,2378.5,2378.1,0.4179]
[1728016873146,3.14356,2378.5,2378.1,0.83841]
[1728016875243,0.42047,2378.4,2378.1,0.83841]
[1728016877648,3.14355,2378.5,2378.2,0.4205]
[1728016877852,2.7231,2378.5,2378.1,0.8384]
[1728016878053,0.42047,2378.4,2378.1,0.8384]
[1728016878547,1.51,2378.3,2378.1,0.8384]
[1728016878752,1.51,2378.3,2378.1,0.4179]
[1728016878753,1.93049,2378.3,2378.1,0.4179]
[1728016878941,1.93049,2378.3,2378.0,1.90209185]
[1728016878942,0.4165,2378.2,2378.0,0.81053]
[1728016879144,2.3258,2378.1,2377.9,4.29936185]
[1728016879448,0.42057,2377.8,2377.6,0.407]
[1728016879648,1.2323,2377.7,2377.6,0.407]
[1728016879952,1.2323,2377.7,2377.6,0.42061]
[1728016880250,1.2323,2377.7,2377.5,3.632]
[1728016880450,1.2323,2377.7,2377.5,3.2078]
[1728016880451,1.51,2377.6,2377.5,3.2078]
[1728016880651,1.93061,2377.6,2377.5,3.2078]
[1728016880849,1.51,2377.6,2377.5,3.2078]
[1728016881150,3.1629,2377.7,2377.5,3.2078]
[1728016881448,3.1629,2377.7,2377.4,0.42064]
[1728016881856,1.2323,2377.7,2377.6,1.51]
[1728016882056,0.8083,2377.7,2377.6,1.93061]
[1728016882754,0.82165,2378.0,2377.8,0.42057]
[1728016882755,0.4011,2378.0,2377.8,0.42057]
[1728016882953,1.228,2378.0,2377.8,1.93057]
[1728016883152,0.8269,2378.0,2377.8,1.51]
[1728016883556,0.8269,2378.0,2377.9,0.42056]
[1728016884453,6.4878,2378.5,2377.7,0.4058]
[1728016884649,6.4878,2378.5,2377.7,3.6136]
[1728016884650,2.4054,2378.4,2377.7,3.6136]
[1728016884852,0.42052,2378.1,2377.8,0.42056]
[1728016885055,0.3988,2378.0,2377.7,3.6136]
[1728016885360,0.3988,2378.0,2377.9,0.42056]
[1728016887860,0.3988,2378.0,2377.7,3.6136]
[1728016888062,0.3988,2378.0,2377.8,0.42057]
[1728016888352,0.3946,2377.9,2377.8,0.42057]
[1728016889151,0.7915,2378.0,2377.9,0.42056]
[1728016889554,0.3988,2378.0,2377.9,0.42056]
[1728016889753,0.3988,2378.0,2377.9,0.81926]
[1728016898662,0.4059,2378.2,2378.1,0.42052]
[1728016898977,1.5935,2378.5,2378.1,0.42052]
[1728016899160,0.4095,2378.5,2378.4,0.42047]
[1728016899555,0.4095,2378.5,2378.3,0.3876]
[1728016899770,0.4095,2378.5,2378.3,0.80808]
[1728016899968,0.4095,2378.5,2378.4,0.42047]
[1728016900467,0.4095,2378.5,2378.3,0.80807]
[1728016900763,0.4095,2378.5,2378.4,0.42047]
[1728016903574,0.4095,2378.5,2378.4,1.93047]
[1728016904472,0.4058,2378.6,2378.5,0.42045]
[1728016904763,0.7773,2378.9,2378.7,0.42041]
[1728016904966,0.3995,2378.8,2378.7,0.42041]
[1728016905169,0.3995,2378.8,2378.6,1.93043]
[1728016905465,0.3995,2378.8,2378.5,1.93043]
[1728016908274,0.8199,2378.8,2378.5,1.93043]
[1728016910165,0.42043,2378.7,2378.4,0.42046]
[1728016910367,0.42043,2378.6,2378.3,5.52587]
[1728016910570,0.8249,2378.5,2378.3,5.52587]
[1728016910967,0.4059,2378.4,2378.3,5.52587]
[1728016911373,0.4059,2378.4,2378.3,9.73067]
[1728016912075,0.4137,2378.5,2378.3,9.3102]
[1728016912376,0.4137,2378.5,2378.4,0.42047]
[1728016912973,0.4059,2378.6,2378.4,0.42047]
[1728016916269,0.4059,2378.6,2378.5,0.42045]
[1728016918481,0.4059,2378.6,2378.5,1.93045]
[1728016919181,0.4059,2378.6,2378.5,1.51]
[1728016919382,0.4059,2378.6,2378.5,1.93045]
[1728016920779,0.4273,2378.7,2378.5,1.51]
[1728016920979,0.4273,2378.7,2378.5,1.93044]
[1728016921179,0.4273,2378.7,2378.6,0.3935]
[1728016921374,0.4273,2378.7,2378.3,3.2078]
[1728016921680,0.4053,2378.6,2378.3,5.53177]
[1728016922279,0.4053,2378.6,2378.4,0.42047]
[1728016923778,0.82574,2378.6,2378.3,5.53177]
[1728016924281,0.4053,2378.6,2378.4,0.42047]
[1728016925081,0.4053,2378.6,2378.3,5.1113]
[1728016925283,0.4053,2378.6,2378.4,0.42045]
[1728016926482,0.4053,2378.6,2378.4,0.42047]
[1728016926879,0.4053,2378.6,2378.3,5.53177]
[1728016927383,0.4053,2378.6,2378.3,3.6013]
[1728016927384,0.42046,2378.5,2378.3,3.6013]
[1728016927586,0.4053,2378.6,2378.3,3.6013]
[1728016927587,1.9153,2378.6,2378.3,3.2078]
[1728016927780,0.393,2378.4,2378.3,3.2078]
[1728016928187,0.81347,2378.4,2378.3,3.2078]
[1728016928385,0.393,2378.4,2378.3,3.2078]
[1728016930686,0.393,2378.4,2378.3,4.7178]
[1728016930887,0.393,2378.4,2378.3,5.1286]
[1728016933084,0.393,2378.4,2378.3,1.9208]
[1728016933488,0.393,2378.4,2378.3,2.34128]
[1728016934793,0.82574,2378.6,2378.3,2.34128]
[1728016935685,0.4053,2378.6,2378.4,0.42046]
[1728016935883,0.4053,2378.6,2378.5,1.51]
[1728016936496,0.4053,2378.6,2378.4,0.3881]
[1728016936789,0.4053,2378.6,2378.4,0.80856]
[1728016938186,0.4053,2378.6,2378.4,0.42046]
[1728016938383,0.4053,2378.6,2378.5,0.42045]
[1728016939785,0.4273,2378.7,2378.5,1.51]
[1728016939989,0.4273,2378.7,2378.3,0.8273]
[1728016939990,0.4157,2379.0,2378.6,5.714]
[1728016940186,1.2697,2379.0,2378.8,1.51]
[1728016940396,1.2697,2379.0,2378.9,0.42038]
[1728016941089,1.2697,2379.0,2378.8,1.93039]
[1728016941989,0.854,2379.0,2378.8,1.93039]
[1728016942395,0.854,2379.0,2378.9,0.42038]
[1728016942601,1.05071,2379.5,2378.9,4.204]
[1728016942791,1.23271,2379.3,2379.1,1.51]
[1728016947193,1.23271,2379.3,2379.1,2.32054]
[1728016947591,1.23271,2379.3,2379.1,1.9002]
[1728016948096,0.8124,2379.3,2379.1,2.32053]
[1728016948296,0.8124,2379.3,2379.2,0.42033]
[1728016948500,0.3886,2379.3,2379.1,1.9002]
[1728016948694,0.3886,2379.3,2379.2,0.42033]
[1728016949498,0.3886,2379.3,2379.1,2.32054]
[1728016951088,0.3886,2379.3,2379.1,1.9002]
[1728016951796,0.3886,2379.3,2379.1,2.32054]
[1728016951997,0.4157,2379.2,2379.1,2.32054]
[1728016952193,0.4157,2379.2,2379.1,0.3902]
[1728016961999,0.4157,2379.2,2379.1,0.81054]
[1728016962697,0.4157,2379.2,2379.1,0.3902]
[1728016967208,0.4157,2379.2,2379.1,0.81054]
[1728016967704,0.4157,2379.2,2379.1,0.3902]
[1728016974998,0.4157,2379.2,2379.0,5.13816]
[1728016975410,0.83603,2379.2,2379.0,5.13816]
[1728016975611,0.4157,2379.2,2379.0,5.13816]
[1728016978314,0.83603,2379.2,2379.0,5.13816]
[1728016978501,0.4157,2379.2,2379.0,5.13816]
[1728016980809,0.83603,2379.2,2379.0,5.13816]
[1728016982615,0.83603,2379.2,2379.0,1.93036]
[1728016983223,0.83604,2379.2,2379.0,1.93036]
[1728016983513,0.83604,2379.2,2378.7,5.10263988]
[1728016983514,0.4204,2378.8,2378.7,3.2078]
[1728016984215,6.1344,2378.8,2378.7,3.2078]
[1728016984405,14.9218,2378.8,2378.2,2.8205997]
[1728016984606,0.42046,2378.5,2378.1,3.81604988]
[1728016984813,0.3971,2378.4,2378.2,0.42049]
[1728016985127,0.3971,2378.4,2378.3,1.51]
[1728016985418,0.3971,2378.4,2378.3,1.93048]
[1728016985620,0.3971,2378.4,2378.3,1.51]
[1728016985817,0.3971,2378.4,2378.3,1.93048]
[1728016986215,0.3971,2378.4,2378.3,1.51]
[1728016986808,0.3971,2378.4,2378.3,1.93048]
[1728016987012,0.3971,2378.4,2378.3,1.51]
[1728016990127,0.3971,2378.4,2378.3,1.93048]
[1728016990817,0.3971,2378.4,2378.3,1.51]
[1728016994215,0.42052,2378.2,2378.0,0.4955]
[1728016994413,1.9334,2378.1,2377.8,1.1915]
[1728016994618,2.35393,2378.1,2377.8,1.61206]
[1728016994822,0.418,2378.0,2377.8,1.1915]
[1728016995123,0.418,2378.0,2377.6,3.2078]
[1728016995124,0.83854,2378.0,2377.6,3.6284]
[1728016995425,0.83854,2378.0,2377.6,4.0228]
[1728016995924,0.42056,2377.9,2377.6,3.6022]
[1728016996223,0.83855,2378.0,2377.6,4.02281]
[1728016998326,0.42056,2377.9,2377.6,4.02281]
[1728016998825,0.42056,2377.9,2377.6,3.6022]
[1728016999224,0.42056,2377.9,2377.6,4.02281]
[1728017000222,0.4068,2377.8,2377.6,3.2078]
[1728017000430,0.42059,2377.7,2377.6,3.2078]
[1728017000731,0.82119,2377.7,2377.6,3.2078]
[1728017001118,5.02679,2377.7,2377.6,3.2078]
[1728017001732,6.53679,2377.7,2377.6,3.2078]
[1728017002123,0.42064,2377.5,2377.3,0.8023]
[1728017002432,0.4252,2377.4,2377.3,0.8023]
[1728017003225,0.4252,2377.4,2377.3,1.22296]
[1728017003525,0.4252,2377.4,2377.3,0.8023]
[1728017003723,0.4252,2377.4,2377.3,2.3123]
[1728017004331,0.4252,2377.4,2377.3,0.8023]
[1728017009532,2.35584,2377.4,2377.3,0.8023]
[1728017010036,0.4042,2377.6,2377.3,1.22295]
[1728017010037,0.82482,2377.6,2377.3,1.22295]
[1728017010236,0.82481,2377.6,2377.5,1.51]
[1728017010738,0.82481,2377.6,2377.4,1.51]
[1728017010929,0.82481,2377.6,2377.5,0.4262]
[1728017014541,0.4042,2377.6,2377.5,0.4262]
[1728017014733,0.8212,2377.7,2377.5,0.4262]
[1728017015133,0.8212,2377.7,2377.6,0.4168]
[1728017015336,0.3885,2377.8,2377.6,0.8374]
[1728017015530,0.3885,2377.8,2377.7,0.3903]
[1728017016539,3.2078,2377.9,2377.7,1.9003]
[1728017016738,3.2078,2377.9,2377.8,1.93057]
[1728017017245,3.2078,2377.9,2377.8,6.13617]
[1728017021739,3.2078,2377.9,2377.8,1.93057]
[1728017022241,3.2078,2377.9,2377.8,0.42057]
[1728017022938,3.62836,2377.9,2377.7,0.3903]
[1728017023443,3.2078,2377.9,2377.7,0.81088]
[1728017024842,3.62836,2377.9,2377.7,0.81088]
[1728017025041,3.2078,2377.9,2377.7,0.3903]
[1728017025241,3.62836,2377.9,2377.7,0.3903]
[1728017025441,0.4229,2377.8,2377.7,0.3903]
[1728017026942,0.84348,2377.8,2377.6,0.4168]
[1728017027848,0.42059,2377.7,2377.6,0.4168]
[1728017028047,0.42059,2377.7,2377.4,0.82644]
[1728017028241,0.3984,2377.6,2377.4,0.82644]
[1728017030351,0.3984,2377.6,2377.5,0.42063]
[1728017031054,0.81902,2377.6,2377.3,2.77695]
[1728017031256,0.4217,2377.5,2377.3,2.77695]
[1728017031446,0.4217,2377.5,2377.3,2.3563]
[1728017031650,0.84233,2377.5,2377.3,2.77696]
[1728017031948,0.4217,2377.5,2377.3,2.77696]
[1728017032452,0.4217,2377.5,2377.4,0.42064]
[1728017034248,0.4217,2377.5,2377.3,2.3563]
[1728017036647,0.4217,2377.5,2377.4,1.51]
[1728017040855,0.84233,2377.5,2377.4,1.51]
[1728017041055,0.4217,2377.5,2377.4,1.51]
[1728017042352,0.84233,2377.5,2377.4,1.51]
[1728017043250,0.84233,2377.5,2377.3,2.3563]
[1728017043856,0.4217,2377.5,2377.3,2.77696]
[1728017045260,0.84233,2377.5,2377.3,2.3563]
[1728017045654,1.26343,2377.5,2377.3,2.3563]
[1728017045859,0.8428,2377.5,2377.3,2.77696]
[1728017046261,0.8428,2377.5,2377.3,2.3563]
[1728017046566,1.26343,2377.5,2377.3,2.3563]
[1728017046862,1.26343,2377.5,2377.3,1.9361]
[1728017047067,1.26343,2377.5,2377.3,1.51]
[1728017052878,0.8428,2377.5,2377.3,1.51]
[1728017053066,0.8428,2377.5,2377.3,1.93065]
[1728017053567,1.26343,2377.5,2377.3,1.51]
[1728017053766,0.8428,2377.5,2377.3,1.93065]
[1728017053965,1.26343,2377.5,2377.3,1.51]
[1728017057879,4.121,2378.1,2377.4,1.51]
[1728017058068,0.4163,2377.8,2377.7,1.51]
[1728017058273,0.4163,2377.8,2377.7,1.93059]
[1728017058672,0.4163,2377.8,2377.7,2.33609]
[1728017059173,0.8264,2377.9,2377.7,1.9155]
[1728017059372,0.8264,2377.9,2377.8,0.42057]
[1728017059676,0.4155,2377.9,2377.7,2.33608]
[1728017060073,0.42059,2377.7,2377.6,3.2078]
[1728017060273,0.42059,2377.7,2377.5,0.411]
[1728017060476,1.9263,2378.0,2377.5,0.411]
[1728017060477,0.81211,2377.6,2377.5,0.411]
[1728017060676,1.22301,2377.6,2377.4,0.816]
[1728017060878,1.22301,2377.6,2377.4,1.23664]
[1728017061381,1.22301,2377.6,2377.4,0.816]
[1728017061680,1.22301,2377.6,2377.4,1.23664]
[1728017062568,4.121,2378.1,2377.5,4.7178]
[1728017062772,0.3854,2378.0,2377.9,0.42056]
[1728017063369,0.3854,2378.0,2377.8,1.65237]
[1728017063570,0.80594,2378.0,2377.8,1.65237]
[1728017064474,0.3854,2378.0,2377.9,1.51]
[1728017064673,0.3854,2378.0,2377.8,1.2318]
[1728017064881,0.42056,2377.9,2377.8,0.8144]
[1728017065887,4.9577,2378.1,2377.8,0.8144]
[1728017065888,4.121,2378.1,2377.9,0.42055]
[1728017066186,1.65299,2378.3,2378.0,0.42053]
[1728017066382,1.65299,2378.3,2378.0,0.83413]
[1728017066575,1.65299,2378.3,2378.1,0.4256]
[1728017066781,0.4205,2378.2,2378.1,0.4256]
[1728017068988,0.4205,2378.2,2378.0,0.4136]
[1728017069284,0.42052,2378.1,2378.0,0.4136]
[1728017069476,0.42054,2378.0,2377.9,0.416]
[1728017069679,0.84004,2378.0,2377.9,0.416]
[1728017070479,3.2078,2378.5,2378.0,0.42053]
[1728017070480,0.42045,2378.5,2378.0,0.42053]
[1728017070681,1.2297,2378.4,2378.0,0.42053]
[1728017070984,0.42049,2378.3,2378.1,0.3957]
[1728017072682,1.2297,2378.4,2378.1,0.3957]
[1728017072886,0.4205,2378.2,2378.1,0.3957]
[1728017073077,0.4205,2378.2,2378.0,0.42053]
[1728017073281,0.419,2378.1,2378.0,0.42053]
[1728017074288,0.83953,2378.1,2377.9,1.22845]
[1728017075186,0.42049,2378.3,2378.0,0.42052]
[1728017075388,0.42049,2378.3,2378.1,0.42052]
[1728017075589,0.42049,2378.3,2378.2,0.4239]
[1728017075793,0.42049,2378.3,2378.2,0.8316]
[1728017076296,1.23809,2378.3,2378.2,0.4239]
[1728017078585,8.49620789,2378.8,2378.2,0.4239]
[1728017078788,0.42046,2378.5,2378.3,1.93048]
[1728017078981,1.2139,2378.7,2378.3,1.9022]
[1728017079188,0.3957,2378.4,2378.3,2.32268]
[1728017079986,0.3957,2378.4,2378.3,2.72958]
[1728017082492,3.2078,2378.8,2378.3,2.3091]
[1728017082791,0.83601,2378.8,2378.6,1.93043]
[1728017082987,0.4156,2378.8,2378.7,0.42041]
[1728017083188,0.4156,2378.8,2378.7,1.23381]
[1728017083595,0.4156,2378.8,2378.7,0.8134]
[1728017084297,0.4156,2378.8,2378.7,1.23381]
[1728017086888,0.42032,2379.3,2379.0,0.42035]
[1728017087097,3.6281,2379.4,2378.9,3.28]
[1728017087397,3.2078,2379.4,2379.2,0.42032]
[1728017087693,3.2078,2379.4,2379.0,0.3897]
[1728017087694,1.2284,2379.6,2379.1,3.28]
[1728017087900,1.2284,2379.6,2379.3,0.4203]
[1728017087901,0.42027,2379.5,2379.3,0.4203]
[1728017088097,0.4264,2379.6,2379.5,0.42027]
[1728017088293,0.392,2379.8,2379.7,0.42024]
[1728017088701,0.392,2379.8,2379.6,0.42024]
[1728017088894,0.392,2379.8,2379.6,0.82124]
[1728017089095,0.392,2379.8,2379.6,0.401]
[1728017089394,0.81223,2379.8,2379.6,0.401]
[1728017089598,0.42024,2379.7,2379.6,0.401]
[1728017089997,0.81223,2379.8,2379.6,0.401]
[1728017090494,3.2078,2380.3,2379.6,0.401]
[1728017090697,3.2078,2380.3,2379.6,3.681]
[1728017090698,0.8064,2380.0,2379.6,3.681]
[1728017090897,0.8064,2380.0,2379.8,0.4202]
[1728017093300,0.8064,2380.0,2379.7,0.42023]
[1728017094204,1.2266,2380.0,2379.6,4.02904]
[1728017094499,0.4202,2379.9,2379.6,4.02904]
[1728017095103,0.8064,2380.0,2379.8,0.42021]
[1728017098805,3.28,2380.4,2379.8,3.28]
[1728017099105,0.42015,2380.2,2379.9,1.23819]
[1728017100303,0.84557,2380.1,2379.9,1.23819]
[1728017100807,0.84557,2380.1,2379.9,0.818]
[1728017101394,0.84557,2380.1,2379.9,1.2382]
[1728017102592,0.4254,2380.1,2380.0,0.42018]
[1728017102797,4.121,2380.6,2380.4,0.4201]
[1728017103109,0.4201,2380.5,2380.2,3.70014]
[1728017103298,0.411,2380.5,2380.2,3.70014]
[1728017103697,0.411,2380.5,2380.3,0.42013]
[1728017103897,0.8311,2380.5,2380.2,3.70014]
[1728017104098,0.8311,2380.5,2380.2,0.42014]
[1728017104299,0.411,2380.5,2380.2,0.42014]
[1728017104498,0.42012,2380.4,2380.2,0.42014]
[1728017104701,0.42011,2380.4,2380.0,0.42018]
[1728017104999,0.42016,2380.2,2379.9,4.02029]
[1728017105202,0.4253,2380.1,2379.9,4.02029]
[1728017105402,1.23407,2380.1,2379.9,4.02029]
[1728017105597,1.23407,2380.1,2379.9,3.62799]
[1728017106808,1.23407,2380.1,2379.9,3.2078]
[1728017107605,4.25831,2379.9,2379.2,0.845]
[1728017107815,0.42035,2379.1,2378.4,0.3865]
[1728017108109,3.6686,2379.0,2378.4,3.2078]
[1728017108307,3.6686,2379.0,2378.1,0.7912]
[1728017108501,3.28,2378.7,2378.1,0.7912]
[1728017108694,3.28,2378.7,2377.8,3.28]
[1728017108898,0.3886,2379.0,2377.7,3.2078]
[1728017108899,3.62828,2378.4,2377.7,3.2078]
[1728017109306,0.83599,2378.3,2377.7,3.2078]
[1728017109709,4.11599,2378.3,2377.7,3.2078]
[1728017110608,3.6955,2378.3,2377.7,3.2078]
[1728017110903,0.42043,2378.6,2377.9,3.28]
[1728017111605,0.42043,2378.6,2378.0,3.2078]
[1728017112106,0.42045,2378.5,2377.9,3.28]
[1728017112808,0.42045,2378.5,2377.9,3.70055]
[1728017113003,0.42045,2378.5,2377.9,3.28]
[1728017113203,0.42045,2378.5,2378.1,3.28]
[1728017113700,0.42047,2378.4,2378.1,3.28]
[1728017114610,0.42047,2378.4,2377.9,3.28]
[1728017116104,7.5388,2378.8,2377.9,3.28]
[1728017116310,0.42048,2378.4,2377.9,3.6684]
[1728017117702,0.42049,2378.3,2377.9,3.6684]
[1728017117900,0.42049,2378.3,2377.9,0.3884]
[1728017121500,0.3971,2378.4,2377.9,0.3884]
[1728017121906,3.6771,2378.4,2377.9,0.3884]
[1728017122112,0.42054,2378.0,2377.8,0.098]
[1728017122411,3.6771,2378.4,2377.7,3.2078]
[1728017122810,0.42053,2378.1,2377.7,3.2078]
[1728017123317,0.42053,2378.1,2377.7,3.62839]
[1728017123915,0.42052,2378.2,2377.7,3.62839]
[1728017124113,3.6771,2378.4,2377.7,3.62839]
[1728017124114,0.42052,2378.1,2377.7,3.62839]
[1728017133128,0.42054,2378.0,2377.7,3.2078]
[1728017133531,0.42053,2378.1,2377.7,3.62839]
[1728017133727,3.6107,2378.3,2377.7,3.62839]
[1728017133930,0.42053,2378.1,2377.7,3.62839]
[1728017134126,0.42055,2378.0,2377.7,3.2078]
[1728017137132,3.6107,2378.3,2377.7,3.2078]
[1728017137335,3.6107,2378.3,2377.6,0.3949]
[1728017137336,3.2078,2378.0,2377.6,0.3949]
[1728017137523,0.42059,2377.7,2377.6,0.3949]
[1728017140040,0.42059,2377.7,2377.4,4.0208]
[1728017140333,0.42063,2377.5,2377.4,4.0208]
[1728017141031,8.29843,2377.5,2377.4,3.2078]
[1728017141231,8.29843,2377.5,2377.1,0.098]
[1728017141430,3.28,2377.3,2377.0,0.8251]
[1728017141637,0.42069,2377.2,2377.0,0.8251]
[1728017142143,3.28,2377.1,2376.6,3.3058]
[1728017142329,3.2078,2377.4,2376.7,1.2445]
[1728017142530,0.42067,2377.3,2377.0,0.42071]
[1728017142729,3.2078,2377.4,2377.1,0.4272]
[1728017142935,0.42068,2377.2,2377.1,0.4272]
[1728017143329,4.2064,2377.2,2376.7,0.9153]
[1728017143643,0.42072,2377.0,2376.7,1.66526]
[1728017144728,3.28,2376.9,2376.4,0.098]
[1728017144928,0.42079,2376.6,2376.5,0.4196]
[1728017146028,3.28,2376.7,2376.5,0.4196]
[1728017146233,0.42079,2376.6,2376.5,0.4196]
[1728017147036,0.81669,2376.6,2376.5,0.4196]
[1728017147336,0.81669,2376.6,2376.3,0.409]
[1728017147337,0.42084,2376.3,2376.2,0.098]
[1728017147542,0.42086,2376.2,2376.1,3.2078]
[1728017148942,1.05181,2377.0,2376.1,7.4166]
[1728017149138,1.05181,2377.0,2376.1,3.2078]
[1728017149139,1.05188,2376.8,2376.1,3.2078]
[1728017149331,4.33198,2376.6,2376.1,3.2078]
[1728017149533,0.42085,2376.3,2376.1,3.2078]
[1728017150334,0.8083,2376.5,2376.1,3.2078]
[1728017150640,0.8083,2376.5,2376.1,3.62866]
[1728017150846,0.8083,2376.5,2376.2,0.42084]
[1728017151039,0.8083,2376.5,2376.1,3.2078]
[1728017151344,0.8083,2376.5,2376.3,0.42084]
[1728017151534,0.8083,2376.5,2375.7,1.15034]
[1728017151535,0.42084,2376.3,2375.9,0.5189]
[1728017151736,0.42084,2376.3,2375.9,0.4209]
[1728017152341,0.42087,2376.2,2375.8,0.7872]
[1728017152539,0.42087,2376.2,2375.9,0.42091]
[1728017152739,0.8083,2376.5,2375.8,0.7872]
[1728017153042,0.42083,2376.4,2376.1,0.42087]
[1728017153447,1.22911,2376.5,2376.1,0.42087]
[1728017153647,1.22911,2376.5,2376.2,0.42086]
[1728017153943,3.2078,2376.7,2376.4,0.42082]
[1728017154144,0.42081,2376.5,2376.1,3.2078]
[1728017154345,0.7853,2376.6,2376.3,0.42083]
[1728017154948,1.20609,2376.6,2376.3,0.42083]
[1728017155641,0.7853,2376.6,2376.2,0.42084]
[1728017155844,0.7853,2376.6,2376.1,3.62867]
[1728017156041,0.7853,2376.6,2376.1,3.2078]
[1728017156442,0.42083,2376.4,2376.1,3.62866]
[1728017156739,0.42081,2376.5,2376.2,0.42085]
[1728017156946,0.42081,2376.5,2376.3,0.42084]
[1728017157341,0.7853,2376.6,2375.8,0.8852]
[1728017157342,3.2078,2376.4,2375.8,0.098]
[1728017157552,7.53986,2376.4,2375.8,0.42091]
[1728017157750,0.42089,2376.1,2375.8,0.42091]
[1728017157944,0.4014,2376.0,2375.8,0.42091]
[1728017158649,0.4014,2376.0,2375.5,1.2146]
[1728017158650,0.4014,2376.0,2375.9,0.42091]
[1728017158845,0.4014,2376.0,2375.5,1.2146]
[1728017159046,0.82229,2376.0,2375.8,0.42092]
[1728017159251,0.4014,2376.0,2375.9,0.42091]
[1728017159653,6.4878,2376.4,2375.6,0.3878]
[1728017159850,3.62863,2376.4,2376.2,0.42086]
[1728017160048,0.42083,2376.4,2376.2,0.42086]
[1728017160248,0.42082,2376.4,2376.1,0.42087]
[1728017162251,1.21901,2376.5,2376.3,0.42084]
[1728017162642,0.42082,2376.4,2376.2,0.42085]
[1728017163347,0.7982,2376.5,2376.2,0.42085]
[1728017163548,0.7982,2376.5,2376.3,0.42082]
[1728017163853,1.219,2376.5,2376.3,0.42082]
[1728017165651,0.7982,2376.5,2376.3,0.42082]
[1728017166054,0.4014,2376.5,2376.4,0.42082]
[1728017167554,0.42082,2376.4,2376.1,0.42087]
[1728017167758,0.42082,2376.4,2376.2,0.42086]
[1728017167759,0.81912,2376.4,2376.2,0.42086]
[1728017167956,0.81912,2376.4,2375.8,0.098]
[1728017167957,0.3983,2376.4,2375.8,0.098]
[1728017168158,0.3983,2376.4,2376.3,0.42084]
[1728017168554,0.3983,2376.4,2375.8,0.098]
[1728017168754,0.4014,2376.5,2375.8,0.098]
[1728017169258,0.42085,2376.3,2375.8,0.098]
[1728017169465,3.6783,2376.4,2376.0,0.42088]
[1728017169760,0.42084,2376.3,2376.0,0.42088]
[1728017170453,3.6783,2376.4,2375.9,0.421]
[1728017170659,3.2078,2376.1,2375.7,3.2078]
[1728017171061,0.3869,2376.1,2375.9,0.42091]
[1728017171359,0.3869,2376.1,2376.0,0.42089]
[1728017171559,3.6061,2376.4,2376.0,4.2088]
[1728017171753,0.3983,2376.4,2375.9,0.4208]
[1728017172064,0.3983,2376.4,2375.7,3.2078]
[1728017172065,0.4209,2376.0,2375.7,3.2078]
[1728017172270,0.8382,2375.9,2375.7,3.2078]
[1728017172454,1.25911,2375.9,2375.7,3.2078]
[1728017173062,0.8382,2375.9,2375.7,3.2078]
[1728017173364,0.42097,2375.6,2375.3,3.3058]
[1728017173558,3.28,2375.5,2375.3,3.2078]
[1728017173758,3.697,2375.5,2375.3,3.2078]
[1728017174660,0.42104,2375.2,2375.0,3.2078]